[Event "*** SCC Grand Prix: Titled Tuesday Blitz"]
[Site "Chess.com"]
[Date "2020.09.08"]
[Round "8"]
[White "SergeyKarjakin"]
[Black "seorobert1971"]
[Result "1-0"]
[WhiteElo "2958"]
[BlackElo "2687"]
[TimeControl "180+1"]
[EndTime "11:33:09 PDT"]
[Termination "SergeyKarjakin won by resignation"]

1. g3 {[%clk 0:03:00.9]} 1... Nf6 {[%clk 0:03:00.1]} 2. Bg2 {[%clk 0:02:59.6]}
2... d5 {[%clk 0:03:00.4]} 3. Nf3 {[%clk 0:02:59.3]} 3... c5 {[%clk 0:03:00.6]}
4. O-O {[%clk 0:02:57.6]} 4... Nc6 {[%clk 0:03:00.8]} 5. d4 {[%clk 0:02:58.2]}
5... e6 {[%clk 0:02:58.7]} 6. c4 {[%clk 0:02:57.3]} 6... dxc4 {[%clk 0:02:58.8]}
7. Qa4 {[%clk 0:02:55.2]} 7... Bd7 {[%clk 0:02:53.7]} 8. Qxc4 {[%clk 0:02:54.2]}
8... cxd4 {[%clk 0:02:47.7]} 9. Nxd4 {[%clk 0:02:49.8]} 9... Rc8 {[%clk
0:02:47.6]} 10. Nc3 {[%clk 0:02:41.1]} 10... a6 {[%clk 0:02:39.8]} 11. Rd1
{[%clk 0:02:34.8]} 11... Qb6 {[%clk 0:02:38.5]} 12. Nb3 {[%clk 0:02:00.2]} 12...
Na5 {[%clk 0:02:27.5]} 13. Qh4 {[%clk 0:01:58.3]} 13... Nxb3 {[%clk 0:02:26.7]}
14. axb3 {[%clk 0:01:59.2]} 14... Qxb3 {[%clk 0:02:17.6]} 15. Bg5 {[%clk
0:01:55.3]} 15... Be7 {[%clk 0:02:17.3]} 16. Ne4 {[%clk 0:01:53.7]} 16... Nxe4
{[%clk 0:01:33]} 17. Bxe7 {[%clk 0:01:52.9]} 17... Bc6 {[%clk 0:01:24.8]} 18.
Bxe4 {[%clk 0:01:46.6]} 18... Bxe4 {[%clk 0:01:24.2]} 19. Ba3 {[%clk 0:01:46.2]}
1-0

[Event "*** SCC Grand Prix: Titled Tuesday Blitz"]
[Site "Chess.com"]
[Date "2020.09.08"]
[Round "8"]
[White "Yaacovn"]
[Black "kingnb"]
[Result "1/2-1/2"]
[WhiteElo "2886"]
[BlackElo "2624"]
[TimeControl "180+1"]
[EndTime "11:33:12 PDT"]
[Termination "Game drawn by repetition"]

1. d4 {[%clk 0:03:00.9]} 1... Nf6 {[%clk 0:02:58.6]} 2. e3 {[%clk 0:03:01.3]}
2... g6 {[%clk 0:02:59.5]} 3. Nf3 {[%clk 0:03:01]} 3... Bg7 {[%clk 0:03:00.4]}
4. Be2 {[%clk 0:03:01.9]} 4... O-O {[%clk 0:03:01]} 5. O-O {[%clk 0:03:02.3]}
5... d6 {[%clk 0:03:01.9]} 6. b3 {[%clk 0:03:03.1]} 6... Nbd7 {[%clk 0:03:02]}
7. Bb2 {[%clk 0:03:04]} 7... e5 {[%clk 0:03:01.8]} 8. dxe5 {[%clk 0:03:04.5]}
8... Ng4 {[%clk 0:03:01.5]} 9. c4 {[%clk 0:03:04.8]} 9... Ngxe5 {[%clk
0:03:00.2]} 10. Nxe5 {[%clk 0:03:05.2]} 10... dxe5 {[%clk 0:03:00.3]} 11. Qc2
{[%clk 0:03:03.8]} 11... c6 {[%clk 0:03:00.8]} 12. Nc3 {[%clk 0:03:04.3]} 12...
Qc7 {[%clk 0:03:01]} 13. Rad1 {[%clk 0:03:04.1]} 13... Nf6 {[%clk 0:03:00.5]}
14. Ba3 {[%clk 0:03:02.2]} 14... Rd8 {[%clk 0:02:58.5]} 15. Rxd8+ {[%clk
0:03:02.3]} 15... Qxd8 {[%clk 0:02:59.4]} 16. Rd1 {[%clk 0:03:02.8]} 16... Qe8
{[%clk 0:02:59.6]} 17. Qd2 {[%clk 0:02:56.4]} 17... Bf5 {[%clk 0:02:50.3]} 18.
h3 {[%clk 0:02:56.7]} 18... h5 {[%clk 0:02:48]} 19. Bf1 {[%clk 0:02:56.4]} 19...
Bf8 {[%clk 0:02:41.8]} 20. Bxf8 {[%clk 0:02:55.6]} 20... Kxf8 {[%clk 0:02:42.3]}
21. c5 {[%clk 0:02:52.1]} 21... Qe7 {[%clk 0:02:40.2]} 22. Na4 {[%clk
0:02:50.5]} 22... Ke8 {[%clk 0:02:40.3]} 23. b4 {[%clk 0:02:49.7]} 23... Rd8
{[%clk 0:02:40.4]} 24. Qxd8+ {[%clk 0:02:44.4]} 24... Qxd8 {[%clk 0:02:41.3]}
25. Rxd8+ {[%clk 0:02:44.6]} 25... Kxd8 {[%clk 0:02:42]} 26. a3 {[%clk
0:02:45.5]} 26... Nd5 {[%clk 0:02:38.2]} 27. Bc4 {[%clk 0:02:43.8]} 27... Bc2
{[%clk 0:02:32.2]} 28. Nb2 {[%clk 0:02:32.4]} 28... Ke7 {[%clk 0:02:23.9]} 29.
Bxd5 {[%clk 0:02:24.9]} 29... cxd5 {[%clk 0:02:24.8]} 30. Kf1 {[%clk 0:02:25.4]}
30... b6 {[%clk 0:02:18.3]} 31. cxb6 {[%clk 0:02:22.7]} 31... axb6 {[%clk
0:02:19.2]} 32. Ke2 {[%clk 0:02:21.4]} 32... b5 {[%clk 0:02:19.4]} 33. Kd2
{[%clk 0:02:21.7]} 33... Bf5 {[%clk 0:02:16.8]} 34. a4 {[%clk 0:02:20.5]} 34...
bxa4 {[%clk 0:02:16.2]} 35. Nxa4 {[%clk 0:02:21.4]} 35... Kd6 {[%clk 0:02:17.1]}
36. Kc3 {[%clk 0:02:16.5]} 36... Kc6 {[%clk 0:02:15.8]} 37. h4 {[%clk
0:02:16.6]} 37... f6 {[%clk 0:02:13.7]} 38. g3 {[%clk 0:02:15.6]} 38... Bc8
{[%clk 0:02:08]} 39. Nc5 {[%clk 0:02:15.2]} 39... Kd6 {[%clk 0:02:07.6]} 40. Nd3
{[%clk 0:02:13.8]} 40... Ba6 {[%clk 0:02:06.5]} 41. Nb2 {[%clk 0:02:12.1]} 41...
Kc6 {[%clk 0:02:06.3]} 42. Nd1 {[%clk 0:02:08.7]} 42... Be2 {[%clk 0:02:05.3]}
43. Nb2 {[%clk 0:02:07.1]} 43... Ba6 {[%clk 0:02:05.8]} 44. Kb3 {[%clk
0:02:05.3]} 44... Bb5 {[%clk 0:02:02.7]} 45. Kc3 {[%clk 0:01:58.6]} 45... Ba6
{[%clk 0:02:02.1]} 1/2-1/2

[Event "*** SCC Grand Prix: Titled Tuesday Blitz"]
[Site "Chess.com"]
[Date "2020.09.08"]
[Round "8"]
[White "Bastiandash"]
[Black "AntonovaNadezhda"]
[Result "0-1"]
[WhiteElo "2364"]
[BlackElo "2069"]
[TimeControl "180+1"]
[EndTime "11:33:14 PDT"]
[Termination "AntonovaNadezhda won on time"]

1. d4 {[%clk 0:03:00.9]} 1... Nf6 {[%clk 0:02:58.4]} 2. c4 {[%clk 0:03:00.6]}
2... g6 {[%clk 0:02:58.7]} 3. Nc3 {[%clk 0:02:59.6]} 3... Bg7 {[%clk 0:02:59.2]}
4. g3 {[%clk 0:02:56.8]} 4... O-O {[%clk 0:02:58.4]} 5. Bg2 {[%clk 0:02:57]}
5... d6 {[%clk 0:02:58.9]} 6. e4 {[%clk 0:02:56.5]} 6... Nc6 {[%clk 0:02:59.3]}
7. Nge2 {[%clk 0:02:56.1]} 7... e5 {[%clk 0:02:54.2]} 8. h3 {[%clk 0:02:56.1]}
8... Re8 {[%clk 0:02:43.9]} 9. d5 {[%clk 0:02:37.4]} 9... Nd4 {[%clk 0:02:37.4]}
10. Be3 {[%clk 0:02:34.1]} 10... c5 {[%clk 0:02:35.3]} 11. Qb3 {[%clk 0:02:35]}
11... Nxb3 {[%clk 0:02:33.6]} 0-1

[Event "*** SCC Grand Prix: Titled Tuesday Blitz"]
[Site "Chess.com"]
[Date "2020.09.08"]
[Round "8"]
[White "K_A_S_T_O_R"]
[Black "Spriteball"]
[Result "1-0"]
[WhiteElo "2741"]
[BlackElo "2279"]
[TimeControl "180+1"]
[EndTime "11:33:20 PDT"]
[Termination "K_A_S_T_O_R won by resignation"]

1. e4 {[%clk 0:03:00.9]} 1... e5 {[%clk 0:02:59.9]} 2. Nf3 {[%clk 0:03:01]} 2...
Nc6 {[%clk 0:03:00.1]} 3. Bb5 {[%clk 0:03:01]} 3... a6 {[%clk 0:03:00.2]} 4. Ba4
{[%clk 0:03:01.2]} 4... Nf6 {[%clk 0:03:00.3]} 5. O-O {[%clk 0:03:01.6]} 5...
Be7 {[%clk 0:02:59.8]} 6. Re1 {[%clk 0:03:01.8]} 6... b5 {[%clk 0:03:00.1]} 7.
Bb3 {[%clk 0:03:02.3]} 7... O-O {[%clk 0:03:00.7]} 8. h3 {[%clk 0:03:00.8]} 8...
d6 {[%clk 0:03:00.3]} 9. c3 {[%clk 0:03:00.3]} 9... Na5 {[%clk 0:03:00.2]} 10.
Bc2 {[%clk 0:03:00.1]} 10... c5 {[%clk 0:03:00.8]} 11. d4 {[%clk 0:03:00.7]}
11... Qc7 {[%clk 0:03:00.1]} 12. d5 {[%clk 0:02:57.2]} 12... c4 {[%clk
0:02:53.6]} 13. b4 {[%clk 0:02:52.4]} 13... Nb7 {[%clk 0:02:41.2]} 14. a4 {[%clk
0:02:50.9]} 14... Bd7 {[%clk 0:02:35.6]} 15. Na3 {[%clk 0:02:44.1]} 15... a5
{[%clk 0:02:25.2]} 16. axb5 {[%clk 0:02:32.3]} 16... axb4 {[%clk 0:02:23.5]} 17.
cxb4 {[%clk 0:02:32]} 17... Rfb8 {[%clk 0:02:13.8]} 18. Be3 {[%clk 0:02:27.9]}
18... Nd8 {[%clk 0:01:53.1]} 19. Qe2 {[%clk 0:02:18.7]} 19... Rc8 {[%clk
0:01:34.2]} 20. b6 {[%clk 0:02:13]} 20... Qb7 {[%clk 0:01:33.1]} 21. Nxc4 {[%clk
0:02:12.1]} 21... Bb5 {[%clk 0:01:25.9]} 22. Nfd2 {[%clk 0:02:04.2]} 22... Rxa1
{[%clk 0:01:20.4]} 23. Rxa1 {[%clk 0:02:03.3]} 23... Nd7 {[%clk 0:01:05.2]} 24.
Ra7 {[%clk 0:02:00.3]} 1-0

[Event "*** SCC Grand Prix: Titled Tuesday Blitz"]
[Site "Chess.com"]
[Date "2020.09.08"]
[Round "8"]
[White "GukeshDommaraju"]
[Black "GigaQuparadze"]
[Result "0-1"]
[WhiteElo "2763"]
[BlackElo "2914"]
[TimeControl "180+1"]
[EndTime "11:33:40 PDT"]
[Termination "GigaQuparadze won by resignation"]

1. e4 {[%clk 0:03:00.9]} 1... c5 {[%clk 0:02:59.9]} 2. Nf3 {[%clk 0:03:00.5]}
2... e6 {[%clk 0:03:00.5]} 3. g3 {[%clk 0:02:58.4]} 3... Nc6 {[%clk 0:03:00.1]}
4. Bg2 {[%clk 0:02:58.3]} 4... Nf6 {[%clk 0:03:00.7]} 5. Qe2 {[%clk 0:02:56.3]}
5... d6 {[%clk 0:03:01.1]} 6. O-O {[%clk 0:02:56.2]} 6... Be7 {[%clk 0:03:01.5]}
7. c3 {[%clk 0:02:56.7]} 7... O-O {[%clk 0:03:01.6]} 8. d4 {[%clk 0:02:57.2]}
8... cxd4 {[%clk 0:03:02.5]} 9. cxd4 {[%clk 0:02:58.1]} 9... d5 {[%clk 0:03:03]}
10. e5 {[%clk 0:02:57.3]} 10... Ne4 {[%clk 0:03:03.4]} 11. Nbd2 {[%clk
0:02:57.3]} 11... Nxd2 {[%clk 0:03:02.9]} 12. Bxd2 {[%clk 0:02:58.2]} 12... Qb6
{[%clk 0:03:02.8]} 13. Bc3 {[%clk 0:02:57.9]} 13... Bd7 {[%clk 0:03:03.2]} 14.
Qd2 {[%clk 0:02:47.2]} 14... Rfc8 {[%clk 0:03:02.1]} 15. h4 {[%clk 0:02:45.9]}
15... Bb4 {[%clk 0:03:02]} 16. h5 {[%clk 0:02:35.4]} 16... h6 {[%clk 0:03:01.8]}
17. Nh2 {[%clk 0:02:33.8]} 17... Bxc3 {[%clk 0:02:54.4]} 18. bxc3 {[%clk
0:02:34.7]} 18... Ne7 {[%clk 0:02:54.9]} 19. Rac1 {[%clk 0:02:31.3]} 19... Qa5
{[%clk 0:02:54.1]} 20. g4 {[%clk 0:02:26.6]} 20... Qd8 {[%clk 0:02:44]} 21. f4
{[%clk 0:02:22.9]} 21... Rc7 {[%clk 0:02:41.4]} 22. g5 {[%clk 0:02:14.9]} 22...
Nf5 {[%clk 0:02:38.7]} 23. Bh3 {[%clk 0:02:07]} 23... Ng3 {[%clk 0:02:36.1]} 24.
gxh6 {[%clk 0:01:56.4]} 24... Nxf1 {[%clk 0:02:35.2]} 25. Rxf1 {[%clk
0:01:53.3]} 25... f5 {[%clk 0:02:31.7]} 26. Kh1 {[%clk 0:01:40.8]} 26... Bb5
{[%clk 0:02:29.1]} 27. Rg1 {[%clk 0:01:40.2]} 27... Qh4 {[%clk 0:02:29.2]} 28.
Qg2 {[%clk 0:01:31.6]} 28... Qxh5 {[%clk 0:02:28.8]} 29. hxg7 {[%clk 0:01:22.7]}
29... Rxc3 {[%clk 0:02:26.6]} 30. Bxf5 {[%clk 0:00:58.4]} 30... Qxf5 {[%clk
0:02:22.7]} 31. Ng4 {[%clk 0:00:55.7]} 31... Qh7+ {[%clk 0:02:11.7]} 0-1

[Event "*** SCC Grand Prix: Titled Tuesday Blitz"]
[Site "Chess.com"]
[Date "2020.09.08"]
[Round "8"]
[White "aNaartjieZA"]
[Black "belisarius64"]
[Result "0-1"]
[WhiteElo "2483"]
[BlackElo "2682"]
[TimeControl "180+1"]
[EndTime "11:33:54 PDT"]
[Termination "belisarius64 won by resignation"]

1. e4 {[%clk 0:03:00.9]} 1... e5 {[%clk 0:02:58.4]} 2. Nf3 {[%clk 0:03:01]} 2...
Nf6 {[%clk 0:02:58.9]} 3. Nc3 {[%clk 0:03:00.3]} 3... Nc6 {[%clk 0:02:57.5]} 4.
g3 {[%clk 0:03:00.3]} 4... Bc5 {[%clk 0:02:54.4]} 5. Bg2 {[%clk 0:03:00.3]} 5...
d6 {[%clk 0:02:54.5]} 6. d3 {[%clk 0:03:00.3]} 6... O-O {[%clk 0:02:53.9]} 7.
Na4 {[%clk 0:03:00]} 7... Bb6 {[%clk 0:02:50.3]} 8. Nxb6 {[%clk 0:02:59.9]} 8...
axb6 {[%clk 0:02:51.2]} 9. O-O {[%clk 0:02:59.9]} 9... h6 {[%clk 0:02:49.1]} 10.
h3 {[%clk 0:02:59.6]} 10... Re8 {[%clk 0:02:47.3]} 11. Re1 {[%clk 0:02:56.6]}
11... Be6 {[%clk 0:02:47.3]} 12. b3 {[%clk 0:02:56.6]} 12... Qd7 {[%clk
0:02:44.5]} 13. Kh2 {[%clk 0:02:55.2]} 13... d5 {[%clk 0:02:19.6]} 14. exd5
{[%clk 0:02:46.8]} 14... Bxd5 {[%clk 0:02:19.5]} 15. Bb2 {[%clk 0:02:46.3]}
15... Qd6 {[%clk 0:02:13.1]} 16. a3 {[%clk 0:02:27.5]} 16... Rad8 {[%clk
0:02:12.7]} 17. Qc1 {[%clk 0:02:20.3]} 17... e4 {[%clk 0:02:01.8]} 18. dxe4
{[%clk 0:02:19.6]} 18... Nxe4 {[%clk 0:02:02]} 19. Re2 {[%clk 0:02:16.3]} 19...
Nxg3 {[%clk 0:01:31.1]} 20. Rxe8+ {[%clk 0:02:15.5]} 20... Rxe8 {[%clk 0:01:32]}
21. fxg3 {[%clk 0:02:15.6]} 21... Re2 {[%clk 0:01:32.4]} 22. Qf1 {[%clk
0:01:51.5]} 22... Rxc2 {[%clk 0:01:31.3]} 23. Bc1 {[%clk 0:01:48.5]} 23... Nd4
{[%clk 0:01:21.9]} 24. Nxd4 {[%clk 0:01:27.2]} 24... Rxg2+ {[%clk 0:01:21.2]}
25. Qxg2 {[%clk 0:01:27]} 25... Bxg2 {[%clk 0:01:22.1]} 26. Kxg2 {[%clk
0:01:23.5]} 26... Qxd4 {[%clk 0:01:20]} 27. Ra2 {[%clk 0:01:23.2]} 27... Qe4+
{[%clk 0:01:18.8]} 28. Kh2 {[%clk 0:01:22.4]} 28... Qb1 {[%clk 0:01:19.2]} 0-1

[Event "*** SCC Grand Prix: Titled Tuesday Blitz"]
[Site "Chess.com"]
[Date "2020.09.08"]
[Round "8"]
[White "Gvetadze"]
[Black "Sethu0025"]
[Result "1-0"]
[WhiteElo "2486"]
[BlackElo "2698"]
[TimeControl "180+1"]
[EndTime "11:33:58 PDT"]
[Termination "Gvetadze won by resignation"]

1. e4 {[%clk 0:03:00.9]} 1... c5 {[%clk 0:02:59.6]} 2. Nf3 {[%clk 0:03:01]} 2...
d6 {[%clk 0:02:58.5]} 3. d4 {[%clk 0:03:01]} 3... cxd4 {[%clk 0:02:59.4]} 4.
Nxd4 {[%clk 0:03:01.5]} 4... Nf6 {[%clk 0:03:00]} 5. f3 {[%clk 0:03:02.1]} 5...
e5 {[%clk 0:02:58.1]} 6. Nb3 {[%clk 0:03:02.1]} 6... Be6 {[%clk 0:02:55.4]} 7.
c4 {[%clk 0:03:01.9]} 7... Nbd7 {[%clk 0:02:55.4]} 8. Be3 {[%clk 0:03:01.8]}
8... Rc8 {[%clk 0:02:55.5]} 9. Be2 {[%clk 0:03:01.4]} 9... Bxc4 {[%clk
0:02:54.5]} 10. O-O {[%clk 0:02:57.4]} 10... Bxe2 {[%clk 0:02:51.3]} 11. Qxe2
{[%clk 0:02:57.4]} 11... a6 {[%clk 0:02:51.9]} 12. Nc3 {[%clk 0:02:57.4]} 12...
Be7 {[%clk 0:02:52.4]} 13. Rad1 {[%clk 0:02:57.7]} 13... O-O {[%clk 0:02:52.9]}
14. f4 {[%clk 0:02:58.1]} 14... Qc7 {[%clk 0:02:50.2]} 15. f5 {[%clk 0:02:55.4]}
15... Qc4 {[%clk 0:02:34.8]} 16. Qf3 {[%clk 0:02:52.7]} 16... Qb4 {[%clk
0:02:30.4]} 17. g4 {[%clk 0:02:49.2]} 17... h6 {[%clk 0:02:29.7]} 18. h4 {[%clk
0:02:48.9]} 18... Nb6 {[%clk 0:02:15.9]} 19. g5 {[%clk 0:02:45.2]} 19... hxg5
{[%clk 0:02:15.8]} 20. hxg5 {[%clk 0:02:45.1]} 20... Nfd7 {[%clk 0:02:11.3]} 21.
f6 {[%clk 0:02:30.9]} 21... gxf6 {[%clk 0:02:10.4]} 22. gxf6 {[%clk 0:02:20.1]}
22... Bxf6 {[%clk 0:02:08.8]} 23. Qg4+ {[%clk 0:02:12.3]} 23... Kh7 {[%clk
0:01:24.9]} 24. Rd2 {[%clk 0:01:51.5]} 24... Bg7 {[%clk 0:00:55.4]} 25. Rh2+
{[%clk 0:01:45.1]} 25... Kg8 {[%clk 0:00:55.3]} 26. Rg2 {[%clk 0:01:36.6]} 1-0

[Event "*** SCC Grand Prix: Titled Tuesday Blitz"]
[Site "Chess.com"]
[Date "2020.09.08"]
[Round "8"]
[White "valeriocarnicelli"]
[Black "Reader777"]
[Result "0-1"]
[WhiteElo "2483"]
[BlackElo "2677"]
[TimeControl "180+1"]
[EndTime "11:34:03 PDT"]
[Termination "Reader777 won by resignation"]

1. e4 {[%clk 0:03:00.9]} 1... c5 {[%clk 0:03:00]} 2. Nf3 {[%clk 0:03:00.9]} 2...
d6 {[%clk 0:03:00.1]} 3. d4 {[%clk 0:03:01.2]} 3... cxd4 {[%clk 0:03:00.4]} 4.
Nxd4 {[%clk 0:03:02.1]} 4... Nf6 {[%clk 0:03:00.5]} 5. Nc3 {[%clk 0:03:02.6]}
5... a6 {[%clk 0:02:59]} 6. f3 {[%clk 0:03:03]} 6... e5 {[%clk 0:02:58.9]} 7.
Nb3 {[%clk 0:03:02.8]} 7... Be6 {[%clk 0:02:59.3]} 8. Be3 {[%clk 0:03:02.9]}
8... Nbd7 {[%clk 0:02:59.5]} 9. Qd2 {[%clk 0:03:03]} 9... b5 {[%clk 0:02:59.7]}
10. O-O-O {[%clk 0:03:03.1]} 10... Nb6 {[%clk 0:02:59.9]} 11. Qf2 {[%clk
0:03:02.9]} 11... Nfd7 {[%clk 0:03:00]} 12. f4 {[%clk 0:03:00.6]} 12... Qc7
{[%clk 0:02:47.5]} 13. f5 {[%clk 0:02:58.7]} 13... Bc4 {[%clk 0:02:46]} 14. Kb1
{[%clk 0:02:53.5]} 14... Be7 {[%clk 0:02:44.3]} 15. g4 {[%clk 0:02:41.1]} 15...
b4 {[%clk 0:02:38.4]} 16. f6 {[%clk 0:02:02.7]} 16... gxf6 {[%clk 0:02:27.7]}
17. Bxc4 {[%clk 0:01:52.6]} 17... Qxc4 {[%clk 0:02:25.4]} 18. Na5 {[%clk
0:01:41.5]} 18... Qc7 {[%clk 0:02:20.1]} 19. Nd5 {[%clk 0:01:41.8]} 19... Nxd5
{[%clk 0:02:15.9]} 20. Rxd5 {[%clk 0:01:42.7]} 20... h5 {[%clk 0:02:13.4]} 21.
Qe2 {[%clk 0:01:28.9]} 21... hxg4 {[%clk 0:02:12.3]} 22. Qxg4 {[%clk 0:01:29.8]}
22... Rc8 {[%clk 0:02:10.8]} 23. Qg2 {[%clk 0:01:21]} 23... f5 {[%clk
0:02:06.8]} 24. Nb3 {[%clk 0:01:13.7]} 24... Nf6 {[%clk 0:02:05]} 25. Rdd1
{[%clk 0:01:14]} 25... Nxe4 {[%clk 0:02:00.2]} 26. h4 {[%clk 0:01:14.2]} 26...
a5 {[%clk 0:01:56.3]} 27. h5 {[%clk 0:01:13.3]} 27... a4 {[%clk 0:01:56.2]} 28.
Nc1 {[%clk 0:01:13.6]} 28... Qc6 {[%clk 0:01:51.3]} 29. Qg7 {[%clk 0:01:12.3]}
29... Bf6 {[%clk 0:01:42.3]} 30. Qg1 {[%clk 0:01:00.3]} 30... Qxc2+ {[%clk
0:01:42.1]} 31. Ka1 {[%clk 0:00:59.6]} 31... a3 {[%clk 0:01:41.8]} 0-1

[Event "*** SCC Grand Prix: Titled Tuesday Blitz"]
[Site "Chess.com"]
[Date "2020.09.08"]
[Round "8"]
[White "Chessdemon2019"]
[Black "shnitez"]
[Result "0-1"]
[WhiteElo "2388"]
[BlackElo "2526"]
[TimeControl "180+1"]
[EndTime "11:34:03 PDT"]
[Termination "shnitez won by resignation"]

1. e4 {[%clk 0:03:00.9]} 1... e5 {[%clk 0:02:56.3]} 2. Nf3 {[%clk 0:02:59.5]}
2... Nc6 {[%clk 0:02:56.7]} 3. Bc4 {[%clk 0:02:59.2]} 3... Bc5 {[%clk
0:02:56.5]} 4. c3 {[%clk 0:02:59.2]} 4... Nf6 {[%clk 0:02:56.6]} 5. d3 {[%clk
0:02:59.4]} 5... a6 {[%clk 0:02:56.6]} 6. a4 {[%clk 0:02:59.3]} 6... d6 {[%clk
0:02:56.2]} 7. Nbd2 {[%clk 0:02:58.5]} 7... h6 {[%clk 0:02:55.6]} 8. O-O {[%clk
0:02:56.2]} 8... O-O {[%clk 0:02:54.4]} 9. h3 {[%clk 0:02:54.5]} 9... Be6 {[%clk
0:02:50.5]} 10. Re1 {[%clk 0:02:53.7]} 10... Qd7 {[%clk 0:02:46.8]} 11. Bb3
{[%clk 0:02:50.5]} 11... Bxb3 {[%clk 0:02:44.6]} 12. Qxb3 {[%clk 0:02:49.8]}
12... Rfe8 {[%clk 0:02:40.3]} 13. Nf1 {[%clk 0:02:48]} 13... d5 {[%clk 0:02:38]}
14. exd5 {[%clk 0:02:46.3]} 14... Nxd5 {[%clk 0:02:37.6]} 15. Ne3 {[%clk
0:02:41.7]} 15... Nf4 {[%clk 0:02:28.9]} 16. d4 {[%clk 0:02:35.2]} 16... exd4
{[%clk 0:02:26.3]} 17. cxd4 {[%clk 0:02:35.5]} 17... Nxd4 {[%clk 0:02:24]} 18.
Nxd4 {[%clk 0:02:35.5]} 18... Bxd4 {[%clk 0:02:08.6]} 19. Bd2 {[%clk 0:02:29.9]}
19... c5 {[%clk 0:02:00.7]} 20. Rad1 {[%clk 0:02:23.1]} 20... Rad8 {[%clk
0:01:51.5]} 21. Bc3 {[%clk 0:02:17.4]} 21... Qc6 {[%clk 0:01:47.3]} 22. Bxd4
{[%clk 0:02:12.9]} 22... cxd4 {[%clk 0:01:46.6]} 23. Rc1 {[%clk 0:02:02.9]}
23... Qe4 {[%clk 0:01:03.4]} 24. f3 {[%clk 0:01:51.1]} 24... Qg6 {[%clk
0:01:02.9]} 25. Ng4 {[%clk 0:01:48.1]} 25... h5 {[%clk 0:00:57.7]} 26. Qxb7
{[%clk 0:01:33]} 26... hxg4 {[%clk 0:00:53.4]} 27. hxg4 {[%clk 0:01:32.6]} 27...
Ne2+ {[%clk 0:00:52.3]} 28. Rxe2 {[%clk 0:01:32.4]} 28... Rxe2 {[%clk
0:00:53.2]} 29. Qb6 {[%clk 0:01:31.9]} 29... Qxb6 {[%clk 0:00:51.8]} 0-1

[Event "*** SCC Grand Prix: Titled Tuesday Blitz"]
[Site "Chess.com"]
[Date "2020.09.08"]
[Round "8"]
[White "GianmarcoVaR"]
[Black "barriochess"]
[Result "1-0"]
[WhiteElo "2567"]
[BlackElo "2380"]
[TimeControl "180+1"]
[EndTime "11:34:06 PDT"]
[Termination "GianmarcoVaR won by resignation"]

1. d4 {[%clk 0:03:00.3]} 1... d5 {[%clk 0:02:59.5]} 2. c4 {[%clk 0:03:00.5]}
2... e6 {[%clk 0:02:59]} 3. Nf3 {[%clk 0:03:00.8]} 3... c5 {[%clk 0:02:59]} 4.
g3 {[%clk 0:03:01.4]} 4... Nc6 {[%clk 0:02:58.3]} 5. Bg2 {[%clk 0:03:00.8]} 5...
Nf6 {[%clk 0:02:58.5]} 6. O-O {[%clk 0:03:00.2]} 6... Be7 {[%clk 0:02:58.2]} 7.
cxd5 {[%clk 0:03:00.4]} 7... exd5 {[%clk 0:02:58]} 8. Nc3 {[%clk 0:03:00.9]}
8... O-O {[%clk 0:02:57]} 9. dxc5 {[%clk 0:03:00.1]} 9... d4 {[%clk 0:02:53.8]}
10. Na4 {[%clk 0:02:59.7]} 10... Bf5 {[%clk 0:02:53.1]} 11. a3 {[%clk
0:02:51.2]} 11... Ne4 {[%clk 0:02:52.3]} 12. b4 {[%clk 0:02:49.1]} 12... Bf6
{[%clk 0:02:52.1]} 13. Bb2 {[%clk 0:02:48.9]} 13... Nc3 {[%clk 0:02:51]} 14. Qb3
{[%clk 0:02:27.3]} 14... Nxe2+ {[%clk 0:02:47]} 15. Kh1 {[%clk 0:02:27.8]} 15...
d3 {[%clk 0:02:39.2]} 16. Rad1 {[%clk 0:02:23.2]} 16... h6 {[%clk 0:02:21.2]}
17. b5 {[%clk 0:02:05.4]} 17... Na5 {[%clk 0:01:25.3]} 18. Qb4 {[%clk
0:02:05.1]} 18... Bxb2 {[%clk 0:01:13.2]} 19. Nxb2 {[%clk 0:02:06]} 19... Rc8
{[%clk 0:01:07.9]} 20. Nxd3 {[%clk 0:02:05.6]} 20... Bxd3 {[%clk 0:01:05.9]} 21.
Ne5 {[%clk 0:02:06.1]} 21... Qd4 {[%clk 0:00:41.6]} 22. Nxd3 {[%clk 0:01:59.5]}
22... Qc3 {[%clk 0:00:34.1]} 23. Rfe1 {[%clk 0:01:52.9]} 23... Rfe8 {[%clk
0:00:32.8]} 24. Rxe2 {[%clk 0:01:52.2]} 1-0

[Event "*** SCC Grand Prix: Titled Tuesday Blitz"]
[Site "Chess.com"]
[Date "2020.09.08"]
[Round "8"]
[White "j_coca"]
[Black "eightbyeightchess"]
[Result "0-1"]
[WhiteElo "2323"]
[BlackElo "2440"]
[TimeControl "180+1"]
[EndTime "11:34:16 PDT"]
[Termination "eightbyeightchess won by resignation"]

1. f4 {[%clk 0:03:00.9]} 1... d5 {[%clk 0:02:58.4]} 2. Nf3 {[%clk 0:03:00.7]}
2... Nf6 {[%clk 0:02:57.8]} 3. e3 {[%clk 0:03:01.1]} 3... a6 {[%clk 0:02:58.3]}
4. d4 {[%clk 0:03:01.5]} 4... c5 {[%clk 0:02:58.2]} 5. c3 {[%clk 0:03:02]} 5...
Nc6 {[%clk 0:02:58.7]} 6. Bd3 {[%clk 0:03:01.4]} 6... Bg4 {[%clk 0:02:58.9]} 7.
O-O {[%clk 0:03:01.1]} 7... e6 {[%clk 0:02:58.2]} 8. Nbd2 {[%clk 0:03:01.4]}
8... Be7 {[%clk 0:02:53.6]} 9. Qc2 {[%clk 0:03:00.6]} 9... Rc8 {[%clk
0:02:52.1]} 10. Qb1 {[%clk 0:03:00.6]} 10... Qb6 {[%clk 0:02:41.4]} 11. Kh1
{[%clk 0:03:00.1]} 11... Bh5 {[%clk 0:02:24.1]} 12. Ne5 {[%clk 0:02:59.2]} 12...
Nxe5 {[%clk 0:02:20.3]} 13. fxe5 {[%clk 0:03:00.1]} 13... Nd7 {[%clk 0:02:20.2]}
14. h3 {[%clk 0:02:57]} 14... Bg6 {[%clk 0:02:20.4]} 15. Nf3 {[%clk 0:02:56.7]}
15... Nf8 {[%clk 0:02:02.3]} 16. Bd2 {[%clk 0:02:55.3]} 16... f6 {[%clk
0:02:01.6]} 17. Rf2 {[%clk 0:02:49.8]} 17... Bxd3 {[%clk 0:01:41.8]} 18. Qxd3
{[%clk 0:02:48.5]} 18... Qb5 {[%clk 0:01:42.5]} 19. Qc2 {[%clk 0:02:44.5]} 19...
Ng6 {[%clk 0:01:39.5]} 20. exf6 {[%clk 0:02:43.9]} 20... gxf6 {[%clk 0:01:34.5]}
21. Raf1 {[%clk 0:02:43.3]} 21... Rg8 {[%clk 0:01:33.7]} 22. e4 {[%clk
0:02:43.3]} 22... Qc6 {[%clk 0:01:23.9]} 23. exd5 {[%clk 0:02:41.4]} 23... Qxd5
{[%clk 0:01:24.8]} 24. Be3 {[%clk 0:02:38.5]} 24... c4 {[%clk 0:01:18.7]} 25.
Nd2 {[%clk 0:02:35.3]} 25... b5 {[%clk 0:01:04]} 26. Ne4 {[%clk 0:02:34]} 26...
f5 {[%clk 0:01:04.1]} 27. Nd2 {[%clk 0:02:29.5]} 27... f4 {[%clk 0:01:03.2]} 28.
Re1 {[%clk 0:02:22.1]} 28... fxe3 {[%clk 0:01:02]} 29. Rxe3 {[%clk 0:02:23]}
29... Kd7 {[%clk 0:01:02.2]} 30. Nf3 {[%clk 0:02:20.3]} 30... Rcf8 {[%clk
0:00:59.9]} 31. Qe2 {[%clk 0:02:19.6]} 31... Nf4 {[%clk 0:00:52.8]} 32. Qd1
{[%clk 0:02:12.8]} 32... Kc8 {[%clk 0:00:39.5]} 33. Kh2 {[%clk 0:02:07.1]} 33...
Bd6 {[%clk 0:00:37.1]} 34. Ne5 {[%clk 0:01:57.6]} 34... Rxg2+ {[%clk 0:00:36.4]}
0-1